bitfinex/quotes_ETHUSD_20241009
["timestamp","ask_amount","ask_price","bid_price","bid_amount"]
[1728465116139,4.11015,2433.0,2432.5,5.9692936]
[1728465116837,8.22044,2433.0,2432.5,1.8583236]
[1728465116991,4.11046,2432.9,2432.5,0.8136]
[1728465118946,8.22043,2433.0,2432.5,4.92457]
[1728465119138,4.11015,2433.0,2432.5,4.92457]
[1728465119293,8.22043,2433.0,2432.5,4.92457]
[1728465120030,8.75674188,2433.0,2432.5,4.92457]
[1728465120418,4.11033,2432.9,2432.5,4.92457]
[1728465121003,4.11033,2432.9,2432.5,0.8136]
[1728465121431,4.64646188,2433.0,2432.5,0.8136]
[1728465121937,4.1104,2432.9,2432.5,0.8136]
[1728465122698,4.11069,2432.7,2432.5,0.8136]
[1728465123537,4.86623,2432.8,2432.5,0.8136]
[1728465123737,4.11067,2432.7,2432.5,0.8136]
[1728465123941,4.11085,2432.6,2432.3,0.7641]
[1728465124146,4.86623,2432.8,2432.3,0.7641]
[1728465124445,0.57419162,2432.7,2432.3,0.7641]
[1728465124751,4.68489162,2432.7,2432.3,0.7641]
[1728465125411,4.68488162,2432.7,2432.3,0.7641]
[1728465125744,4.11102,2432.5,2432.1,0.7641]
[1728465126149,4.11084,2432.6,2432.1,4.87577]
[1728465126320,4.11084,2432.6,2432.1,4.87566]
[1728465127155,4.11053,2432.8,2432.3,4.92083]
[1728465127457,11.45312882,2433.0,2432.6,0.8095]
[1728465127655,4.11015,2433.0,2432.6,0.8095]
[1728465127837,5.007736,2433.0,2432.6,0.8095]
[1728465128864,0.897586,2433.0,2432.6,0.8095]
[1728465129015,4.11011,2433.1,2432.6,2.56439083]
[1728465129354,0.7556,2433.2,2432.6,2.56439083]
[1728465129355,4.1099,2433.2,2432.7,4.11054]
[1728465129554,1.39977178,2433.4,2432.6,2.56439083]
[1728465129717,4.11008,2433.1,2432.6,0.8095]
[1728465129917,4.11008,2433.1,2432.6,1.88811508]
[1728465130279,4.11008,2433.1,2432.6,5.99893508]
[1728465131636,4.10976,2433.3,2432.7,4.92596]
[1728465131969,4.10976,2433.3,2432.7,9.03648]
[1728465132150,8.21952,2433.3,2432.7,9.03648]
[1728465132466,8.21952,2433.3,2432.7,10.16858935]
[1728465132772,8.21952,2433.3,2432.7,6.05802935]
[1728465133060,8.21951,2433.3,2432.7,6.05802935]
[1728465133559,4.10975,2433.3,2432.7,6.05802935]
[1728465133764,4.10986,2433.2,2432.7,6.05802935]
[1728465135259,4.10986,2433.2,2432.8,0.78129202]
[1728465136673,4.10986,2433.2,2432.9,0.8064]
[1728465137480,4.10975,2433.3,2432.9,0.8064]
[1728465137690,8.21956,2433.3,2432.9,0.8064]
[1728465137855,4.10975,2433.3,2432.9,0.8064]
[1728465138895,4.10983,2433.2,2432.9,0.8064]
[1728465143494,4.10998,2433.1,2432.9,0.8064]
[1728465143652,8.22007,2433.1,2432.9,0.8064]
[1728465144197,4.10998,2433.1,2432.9,0.8064]
[1728465144759,4.1104,2432.9,2432.6,0.7503]
[1728465148484,4.11015,2433.0,2432.6,0.7503]
[1728465149229,4.11,2433.1,2432.6,4.8611]
[1728465149517,8.22011,2433.1,2432.6,4.8611]
[1728465150029,8.22011,2433.1,2432.6,0.7503]
[1728465150894,4.11015,2433.0,2432.6,0.7503]
[1728465151509,4.11,2433.1,2432.6,4.86112]
[1728465152810,8.22009,2433.1,2432.6,4.86112]
[1728465153698,4.11,2433.1,2432.6,4.86112]
[1728465154429,4.11,2433.1,2432.7,4.90785]
[1728465154724,4.10981,2433.2,2432.7,4.99004544]
[1728465154890,4.10981,2433.2,2432.7,8.30338544]
[1728465155093,4.10981,2433.2,2432.8,0.7996]
[1728465157389,4.11001,2433.1,2432.8,0.7996]
[1728465160989,5.687592,2433.1,2432.8,0.7996]
[1728465161193,4.11001,2433.1,2432.8,0.7996]
[1728465162028,4.10982,2433.2,2432.8,0.7996]
[1728465162962,4.10965,2433.3,2432.8,4.91007]
[1728465163258,8.21939,2433.3,2432.8,4.91007]
[1728465163418,4.10987,2433.2,2432.8,0.7996]
[1728465168064,4.10998,2433.1,2432.8,0.7996]
[1728465169057,8.21943,2433.3,2432.8,0.7996]
[1728465169275,8.21943,2433.3,2432.9,0.7503]
[1728465170087,4.10987,2433.2,2432.9,0.7503]
[1728465171375,4.10965,2433.3,2432.9,0.7503]
[1728465171581,4.10955,2433.4,2433.0,0.7575]
[1728465171740,4.22927562,2433.5,2433.0,0.7575]
[1728465171934,4.10965,2433.3,2433.0,0.7575]
[1728465172131,4.10993,2433.2,2433.0,0.7575]
[1728465172642,4.10964,2433.3,2433.0,0.7575]
[1728465174782,4.22916562,2433.5,2433.0,0.7575]
[1728465174948,4.22916562,2433.5,2433.1,0.8293]
[1728465175393,8.33859562,2433.5,2433.1,0.8293]
[1728465175987,4.22916562,2433.5,2433.1,0.8293]
[1728465176288,0.11985562,2433.5,2433.3,0.825]
[1728465179057,4.22926562,2433.5,2433.3,0.825]
[1728465182909,0.11170123,2433.4,2433.3,0.825]
[1728465185287,0.11170123,2433.4,2433.3,1.90493008]
[1728465188619,0.11170123,2433.4,2433.3,0.825]
[1728465188829,0.11170123,2433.4,2433.1,0.76]
[1728465189028,4.10966,2433.3,2433.1,0.76]
[1728465190207,4.10966,2433.3,2432.9,0.7688]
[1728465190433,4.11,2433.1,2432.7,0.7688]
[1728465193538,0.7556,2433.2,2432.7,4.87943]
[1728465194038,4.86544,2433.2,2432.7,4.87943]
[1728465205496,4.22120123,2433.4,2432.8,4.11044]
[1728465205497,4.10965,2433.3,2432.8,4.11044]
[1728465207167,4.10965,2433.3,2432.9,0.7735]
[1728465207455,5.20576977,2433.3,2432.9,0.7735]
[1728465207663,1.09611977,2433.3,2432.9,4.88381]
[1728465207819,9.08642123,2433.4,2432.9,4.88381]
[1728465208022,4.97680123,2433.4,2432.9,4.88381]
[1728465208221,4.10966,2433.3,2432.9,0.7735]
[1728465211238,4.97680123,2433.4,2432.9,4.88381]
[1728465211564,4.10967,2433.3,2432.9,0.7735]
[1728465212188,4.22120123,2433.4,2432.9,5.95873808]
[1728465212335,0.11170123,2433.4,2433.1,0.7654]
[1728465212527,0.11170123,2433.4,2433.3,4.87504]
[1728465212766,0.11170123,2433.4,2433.3,0.7654]
[1728465218754,4.22120123,2433.4,2433.1,0.8014]
[1728465218942,0.11170123,2433.4,2433.1,0.8014]
[1728465219783,4.10966,2433.3,2432.9,0.8014]
[1728465219985,8.975,2433.3,2432.9,0.8014]
[1728465220283,4.10991,2433.2,2432.9,0.8014]
[1728465222599,4.10991,2433.2,2432.9,0.8014]
[1728465224698,0.7556,2433.3,2432.7,0.798]
[1728465224907,4.1101,2433.1,2432.7,0.798]
[1728465225074,8.22022,2433.1,2432.7,0.798]
[1728465225257,4.11015,2433.0,2432.7,0.798]
[1728465225762,4.1101,2433.1,2432.7,0.798]
[1728465226100,8.22018,2433.1,2432.9,48.364053]
[1728465227403,4.11008,2433.1,2432.9,48.364053]
[1728465227779,8.22019,2433.1,2432.9,48.364053]
[1728465228164,4.11015,2433.0,2432.9,48.364053]
[1728465230602,4.86265,2433.0,2432.9,48.364053]
[1728465230911,5.93541208,2433.0,2432.9,48.364053]
[1728465233768,7.69030291,2433.0,2432.9,48.364053]
[1728465241597,5.93541208,2433.0,2432.9,48.364053]
[1728465244941,4.11008,2433.1,2432.9,48.364053]
[1728465245137,4.10974,2433.3,2432.9,48.364053]
[1728465245343,4.10974,2433.3,2433.0,0.8276]
[1728465245344,4.1099,2433.2,2433.0,0.8276]
[1728465247538,4.10998,2433.1,2432.9,48.364053]
[1728465248059,4.11015,2433.0,2432.9,48.364053]
[1728465249945,4.1099,2433.2,2432.9,48.364053]
[1728465250541,4.11,2433.1,2432.9,48.364053]
[1728465251432,4.10975,2433.3,2433.0,0.7685]
[1728465251640,8.21953,2433.3,2433.0,0.7685]
[1728465251827,4.10989,2433.2,2433.0,0.7685]
[1728465253408,4.10998,2433.1,2433.0,0.7685]
[1728465253603,4.10998,2433.1,2432.9,48.364053]
[1728465254347,4.11015,2433.0,2432.9,48.364053]
[1728465264597,4.11015,2433.0,2432.9,48.364053]
[1728465268615,4.10998,2433.1,2432.9,48.364053]
[1728465268964,4.11015,2433.0,2432.9,48.364053]
[1728465270492,8.2201,2433.1,2432.9,48.364053]
[1728465270948,4.10998,2433.1,2432.9,48.364053]
[1728465272753,0.10273093,2433.0,2432.9,48.364053]
[1728465276250,0.10273093,2433.0,2432.9,50.89054383]
[1728465276657,0.10273093,2433.0,2432.9,55.00086383]
[1728465277251,0.10273093,2433.0,2432.9,49.135653]
[1728465277881,0.10273093,2433.0,2432.9,53.245973]
[1728465278755,0.10273093,2433.0,2432.9,49.135653]
[1728465282995,0.10273093,2433.0,2432.9,50.89054383]
[1728465288075,0.10273093,2433.0,2432.9,49.135653]
[1728465288282,4.21288093,2433.0,2432.9,49.135653]
[1728465288488,0.10273093,2433.0,2432.9,49.135653]
[1728465289979,0.10273093,2433.0,2432.9,48.364053]
[1728465292672,4.21288093,2433.0,2432.9,48.364053]
[1728465294468,4.21208093,2433.0,2432.9,48.364053]
[1728465296206,7.55478685,2433.0,2432.9,48.364053]
[1728465299199,7.55398685,2433.0,2432.9,48.364053]
[1728465299409,10.55398685,2433.0,2432.9,48.364053]
[1728465300687,8.79909602,2433.0,2432.9,48.364053]
[1728465301301,7.96688093,2433.0,2432.9,48.364053]
[1728465301804,4.21128093,2433.0,2432.9,48.364053]
[1728465307821,4.96688093,2433.0,2432.9,48.364053]
[1728465314447,4.21128093,2433.0,2432.9,48.364053]
[1728465314814,4.21048093,2433.0,2432.9,48.364053]
[1728465318054,4.96608093,2433.0,2432.9,48.364053]
[1728465318254,9.04918511,2433.0,2432.9,48.364053]
[1728465318479,10.80407594,2433.0,2432.9,48.364053]
[1728465323039,11.35407594,2433.0,2432.9,48.364053]
[1728465325706,15.36092966,2433.0,2432.9,29.31268949]
[1728465325857,55.40915566,2433.0,2432.9,29.31268949]
[1728465327410,40.97545642,2433.0,2432.9,29.31268949]
[1728465327706,25.92644058,2433.0,2432.9,29.31268949]
[1728465328505,10.35369758,2433.0,2432.9,29.31268949]
[1728465328696,9.92529625,2433.0,2432.9,29.31268949]
[1728465329807,10.47529625,2433.0,2432.9,29.31268949]
[1728465336986,20.80769625,2433.0,2432.9,29.31268949]
[1728465337187,17.44683125,2433.0,2432.9,29.31268949]
[1728465337385,16.10990125,2433.0,2432.9,29.31268949]
[1728465340432,20.44090125,2433.0,2432.9,29.31268949]
[1728465342228,14.80629625,2433.0,2432.9,29.31268949]
[1728465343929,6.16969625,2433.0,2432.9,29.31268949]
[1728465344141,4.41480542,2433.0,2432.9,29.31268949]
[1728465344429,4.21048093,2433.0,2432.9,29.31268949]
[1728465345494,8.96537176,2433.0,2432.9,29.31268949]
[1728465345904,7.21048093,2433.0,2432.9,30.09208949]
[1728465346942,4.21048093,2433.0,2432.9,30.09208949]
[1728465347997,4.21048093,2433.0,2432.9,29.31268949]
[1728465348192,4.76048093,2433.0,2432.9,29.31268949]
[1728465350043,4.21048093,2433.0,2432.9,29.31268949]
[1728465351265,4.21048093,2433.0,2432.9,30.11818949]
[1728465353446,4.76048093,2433.0,2432.9,29.31268949]
[1728465353675,7.76048093,2433.0,2432.9,29.31268949]
[1728465358384,8.51538093,2433.0,2432.9,29.31268949]
[1728465360756,8.51538093,2433.0,2432.9,29.31268949]
[1728465360947,11.95196864,2433.0,2432.9,29.31268949]
[1728465361163,57.60977164,2433.0,2432.9,29.31268949]
[1728465361366,58.53118247,2433.0,2432.9,29.31268949]
[1728465361791,52.07449347,2433.0,2432.9,29.31268949]
[1728465362181,49.06573664,2433.0,2432.9,29.31268949]
[1728465362581,52.07590079,2433.0,2432.9,29.31268949]
[1728465362916,52.16410459,2433.0,2432.9,29.31268949]
[1728465363776,36.55257359,2433.0,2432.9,29.31268949]
[1728465364005,35.56274459,2433.0,2432.9,29.31268949]
[1728465364212,34.87139859,2433.0,2432.9,29.31268949]
[1728465365715,35.51582883,2433.0,2432.9,29.31268949]
[1728465366125,35.51800051,2433.0,2432.9,29.31268949]
[1728465366891,13.60959251,2433.0,2432.9,29.31268949]
[1728465367092,43.82786851,2433.0,2432.9,29.31268949]
[1728465367509,65.47116609,2433.0,2432.9,20.34879987]
[1728465367681,69.02948779,2433.0,2432.9,20.34879987]
[1728465367879,69.60366188,2433.0,2432.9,20.34879987]
[1728465368313,66.04534018,2433.0,2432.9,20.34879987]
[1728465368615,69.60366188,2433.0,2432.9,20.34879987]
[1728465369019,70.15829529,2433.0,2432.9,19.01614225]
[1728465369983,69.60366188,2433.0,2432.9,19.01614225]
[1728465370317,66.04534018,2433.0,2432.9,19.01614225]
[1728465371423,63.84427156,2433.0,2432.9,19.01614225]
[1728465371903,64.39890497,2433.0,2432.9,10.79251214]
[1728465372495,67.95581186,2433.0,2432.9,10.79251214]
[1728465373108,67.40117845,2433.0,2432.9,10.79251214]
[1728465373308,69.96374308,2433.0,2432.9,10.79251214]
[1728465373831,66.9614696,2433.0,2432.9,10.79251214]
[1728465374531,66.9614696,2433.0,2432.9,1.46363212]
[1728465374703,4.11341,2431.1,2430.7,0.20575139]
[1728465374909,4.11341,2431.1,2430.8,0.7566]
[1728465375133,4.1137,2430.9,2430.8,0.7566]
[1728465375703,4.11341,2431.1,2430.8,0.7566]
[1728465376309,4.11358,2431.0,2430.8,0.7566]
[1728465376539,4.11341,2431.1,2430.8,0.7566]
[1728465376901,4.11341,2431.1,2430.8,0.487077]
[1728465376902,4.11363,2431.0,2430.8,0.487077]
[1728465377103,4.11363,2431.0,2430.6,0.7642]
[1728465380343,8.22758,2430.9,2430.6,0.7642]
[1728465380502,4.11372,2430.9,2430.6,0.7642]
[1728465381247,3.80174978,2431.1,2430.6,0.7642]
[1728465381538,4.11397,2430.8,2430.6,0.7642]
[1728465382735,4.11404,2430.7,2430.6,0.7642]
[1728465383342,4.11372,2430.9,2430.6,0.7642]
[1728465383517,8.22732,2431.0,2430.6,0.7642]
[1728465383694,4.11389,2430.8,2430.6,0.7642]
[1728465383893,4.11389,2430.8,2430.7,0.7509]
[1728465384800,4.11375,2430.9,2430.7,0.7509]
[1728465385431,4.11365,2431.0,2430.7,1.21743139]
[1728465385630,4.1137,2430.9,2430.8,0.7717]
[1728465386441,4.11329,2431.2,2430.8,0.7717]
[1728465386637,4.11338,2431.1,2430.8,3.80174978]
[1728465386841,4.11338,2431.1,2431.0,0.8243]
[1728465387341,4.11329,2431.2,2431.0,0.8243]
[1728465387580,0.64383317,2431.3,2431.1,0.8158]
[1728465387737,0.64383317,2431.3,2431.2,3.80174978]
[1728465387941,0.64383317,2431.3,2431.2,4.62984978]
[1728465388280,0.64383317,2431.3,2431.2,1.29108498]
[1728465389250,4.11294,2431.4,2431.2,1.29108498]
[1728465389450,4.11294,2431.4,2431.3,0.8133]
[1728465389970,4.11262,2431.6,2431.3,0.8133]
[1728465390174,4.11262,2431.6,2431.5,0.8133]
[1728465390175,4.11251,2431.6,2431.5,0.8133]
[1728465390789,11.45540882,2431.7,2431.5,0.8133]
[1728465390990,7.34297882,2431.7,2431.5,0.8133]
[1728465392857,4.11238,2431.7,2431.5,0.8133]
[1728465393472,4.11251,2431.6,2431.5,0.8133]
[1728465395850,4.11235,2431.7,2431.5,0.8133]
[1728465396080,4.11235,2431.7,2431.5,1.31745233]
[1728465396451,4.11226,2431.8,2431.5,1.31745233]
[1728465396788,4.11234,2431.7,2431.5,1.31745233]
[1728465397151,4.11226,2431.8,2431.5,1.31745233]
[1728465397356,4.11251,2431.6,2431.5,1.31745233]
[1728465397868,4.11251,2431.6,2431.5,0.8133]
[1728465398894,4.11171,2431.6,2431.5,0.8133]
[1728465400383,4.11091,2431.6,2431.5,0.8133]
[1728465404601,4.11237,2431.7,2431.5,0.8133]
[1728465405857,4.1127,2431.5,2431.1,0.7674]
[1728465406294,4.1129,2431.4,2431.2,0.7674]
[1728465406498,4.11302,2431.3,2431.2,0.7674]
[1728465409503,4.1127,2431.5,2431.2,0.7674]
[1728465410085,8.2255,2431.5,2431.2,0.7674]
[1728465410297,8.22548,2431.5,2431.2,1.72249128]
[1728465410609,4.1127,2431.5,2431.3,0.7814]
[1728465411106,4.11252,2431.6,2431.4,0.7814]
[1728465411411,4.11252,2431.6,2431.3,3.80174978]
[1728465411412,4.11227,2431.8,2431.6,0.7814]
[1728465412306,4.11211,2431.9,2431.8,0.8003]
[1728465412508,4.11176,2432.1,2431.8,0.8003]
[1728465412509,4.11175,2432.1,2431.8,0.8003]
[1728465412700,4.11186,2432.0,2431.8,0.8003]
[1728465412871,4.11201,2431.9,2431.8,0.8003]
[1728465413911,4.11218,2431.8,2431.5,3.80174978]
[1728465414082,4.11218,2431.8,2431.6,0.803]
[1728465414287,8.22415,2431.9,2431.6,0.803]
[1728465417220,8.22418,2431.9,2431.6,0.803]
[1728465417519,8.22415,2431.9,2431.6,0.803]
[1728465418023,4.1122,2431.8,2431.6,0.803]
[1728465418826,4.11201,2431.9,2431.6,1.26347498]
[1728465418990,4.11185,2432.0,2431.7,0.8292]
[1728465419386,4.11176,2432.1,2431.7,0.91143685]
[1728465419599,4.11176,2432.1,2431.8,0.8132]
[1728465420128,8.22352,2432.1,2431.8,0.8132]
[1728465420619,4.11176,2432.1,2431.8,0.8132]
[1728465422122,4.11188,2432.0,2431.8,0.8132]
[1728465422426,4.11176,2432.1,2431.8,0.8132]
[1728465422627,4.11176,2432.1,2431.9,0.7723]
[1728465424890,4.11184,2432.0,2431.9,0.7723]
[1728465426612,4.11203,2431.9,2431.4,0.8145]
[1728465426833,4.11176,2432.1,2431.4,0.8145]
[1728465426834,8.22485,2431.7,2431.4,0.8145]
[1728465427002,4.11237,2431.7,2431.4,0.8145]
[1728465427747,8.22485,2431.7,2431.4,0.8145]
[1728465427907,4.11237,2431.7,2431.4,0.8145]
[1728465428512,4.11218,2431.8,2431.4,0.8145]
[1728465428713,4.11212,2431.9,2431.6,0.7567]
[1728465428934,4.11212,2431.9,2431.8,0.7567]
[1728465433157,4.11201,2431.9,2431.8,0.7567]
[1728465435109,4.11186,2432.0,2431.8,0.7567]
[1728465435410,4.11163,2432.2,2431.9,4.56384978]
[1728465435411,4.11152,2432.2,2431.9,4.56384978]
[1728465435790,4.11152,2432.2,2432.0,0.7621]
[1728465438191,4.11128,2432.4,2432.0,0.7621]
[1728465438491,4.11099,2432.5,2432.4,0.7533]
[1728465438656,4.1108,2432.7,2432.4,0.7533]
[1728465439259,4.11082,2432.6,2432.4,0.7533]
[1728465440903,4.11092,2432.6,2432.4,0.7533]
[1728465441915,4.11099,2432.5,2432.2,0.831]
[1728465442093,4.11133,2432.3,2432.0,0.831]
[1728465442409,4.11159,2432.2,2432.0,0.831]
[1728465443851,4.11133,2432.3,2432.0,0.831]
[1728465444006,4.11109,2432.5,2432.1,3.8839765]
[1728465444221,4.11083,2432.6,2432.2,0.7809]
[1728465446404,4.11101,2432.5,2432.2,0.7809]
[1728465447208,4.11117,2432.4,2432.2,0.7809]
[1728465447941,4.11101,2432.5,2432.2,0.7809]
[1728465448213,0.7556,2432.6,2431.9,0.8241]
[1728465448418,3.7556,2432.6,2431.9,0.8241]
[1728465448993,4.11161,2432.2,2431.9,0.8241]
[1728465452325,4.11161,2432.2,2431.5,0.7962]
[1728465452326,0.7556,2432.2,2431.5,0.7962]
[1728465452526,4.11219,2431.8,2431.5,0.7962]
[1728465452821,0.07068219,2431.7,2431.5,0.7962]
[1728465456233,4.18319219,2431.7,2431.3,0.8279]
[1728465459410,0.07068219,2431.7,2431.3,4.94092]
[1728465460005,0.07068219,2431.7,2431.4,3.80174978]
[1728465460209,0.07068219,2431.7,2431.4,7.91458978]
[1728465460406,0.07068219,2431.7,2431.6,3.80174978]
[1728465467238,0.07068219,2431.7,2431.5,0.8164]
[1728465467628,0.07068219,2431.7,2431.4,3.80174978]
[1728465467829,0.07068219,2431.7,2431.4,7.91458978]
[1728465468140,0.07068219,2431.7,2431.4,3.80174978]
[1728465468840,0.07068219,2431.7,2431.3,0.7995]
[1728465470157,4.11252,2431.6,2431.3,0.7995]
[1728465470506,4.11272,2431.5,2431.3,0.7995]
[1728465470844,4.11272,2431.5,2430.8,0.8181]
[1728465470845,4.11319,2431.2,2430.8,0.8181]
[1728465472240,4.11339,2431.1,2430.8,0.8181]
[1728465472409,4.11319,2431.2,2430.8,0.8181]
[1728465472606,8.22652,2431.2,2430.8,0.8181]
[1728465473032,4.11254,2431.6,2430.5,0.1126641]
[1728465473033,4.1137,2430.9,2430.5,0.1126641]
[1728465473322,4.1137,2430.9,2430.5,0.8643641]
[1728465474942,4.11388,2430.8,2430.5,0.8643641]
[1728465476145,4.11388,2430.8,2430.5,0.1126641]
[1728465476146,4.11407,2430.7,2430.5,0.1126641]
[1728465476564,4.11421,2430.6,2430.5,0.1126641]
[1728465476764,7.86671,2430.6,2430.5,0.1126641]
[1728465479977,8.07639864,2430.6,2430.5,0.1126641]
[1728465480160,5.07639864,2430.6,2430.5,0.1126641]
[1728465480367,8.07639864,2430.6,2430.5,0.1126641]
[1728465482315,7.86671,2430.6,2430.5,0.1126641]
[1728465482704,4.86671,2430.6,2430.5,0.1126641]
[1728465482876,4.11407,2430.7,2430.5,0.1126641]
[1728465483078,4.86933,2430.9,2430.5,0.1126641]
[1728465483779,4.11388,2430.8,2430.5,0.1126641]
[1728465484198,4.11406,2430.7,2430.5,0.1126641]
[1728465484896,4.11421,2430.6,2430.5,0.1126641]
[1728465485313,4.11406,2430.7,2430.5,0.1126641]
[1728465485530,3.0,2430.8,2430.5,0.1126641]
[1728465486022,4.86941,2430.9,2430.5,0.1126641]
[1728465486222,0.7556,2430.9,2430.5,0.1126641]
[1728465486432,4.11413,2430.7,2430.5,0.1126641]
[1728465487285,4.11421,2430.6,2430.5,0.1126641]
[1728465487928,4.86981,2430.6,2430.5,0.1126641]
[1728465489431,7.86981,2430.6,2430.5,0.1126641]
[1728465491631,4.11421,2430.6,2430.5,0.1126641]
[1728465497924,7.86981,2430.6,2430.5,0.1126641]
[1728465499302,8.41981,2430.6,2430.5,0.1126641]
[1728465499752,7.86981,2430.6,2430.5,0.1126641]
[1728465501074,4.11421,2430.6,2430.5,0.1126641]
[1728465501767,4.11413,2430.7,2430.5,0.1126641]
[1728465501972,4.11421,2430.6,2430.5,0.1126641]
[1728465502344,8.22827,2430.7,2430.5,0.1126641]
[1728465502525,4.11413,2430.7,2430.5,0.1126641]
[1728465503364,4.11421,2430.6,2430.5,0.1126641]
[1728465504987,4.11381,2430.9,2430.5,0.9151641]
[1728465505279,4.11397,2430.8,2430.5,1.80653692]
[1728465505440,4.11415,2430.7,2430.5,0.9151641]
[1728465506643,4.11397,2430.8,2430.5,0.9151641]
[1728465507049,8.22799,2430.8,2430.5,0.9151641]
[1728465507773,4.11397,2430.8,2430.5,0.9151641]
[1728465508327,8.22793,2430.8,2430.5,0.9151641]
[1728465509776,4.11396,2430.8,2430.5,0.9151641]
[1728465509985,8.22795,2430.8,2430.5,0.9151641]
[1728465511663,0.7556,2431.0,2430.5,4.2269241]
[1728465511664,4.11366,2431.0,2430.5,4.2269241]
[1728465511985,4.11332,2431.2,2430.5,4.2269241]
[1728465511986,4.11332,2431.2,2430.6,9.52061717]
[1728465512477,4.11349,2431.1,2430.6,9.52061717]
[1728465513080,4.1133,2431.2,2430.8,0.7635]
[1728465513386,4.11328,2431.2,2430.8,0.7635]
[1728465513685,4.11319,2431.2,2430.8,4.56524978]
[1728465513998,4.18305219,2431.7,2431.0,8.71945978]
[1728465513999,4.11263,2431.6,2431.0,8.71945978]
[1728465514583,4.11263,2431.6,2431.4,0.8042]
[1728465515086,0.07068219,2431.7,2431.5,3.80174978]
[1728465515398,0.07068219,2431.7,2431.4,0.8042]
[1728465515683,0.07068219,2431.7,2431.4,2.08741298]
[1728465516342,0.07068219,2431.7,2431.5,0.08224425]
[1728465516846,0.07068219,2431.7,2431.4,2.08741298]
[1728465519551,0.07068219,2431.7,2431.5,0.0822442]
[1728465519879,0.07068219,2431.7,2431.6,4.95335415]
[1728465520083,0.07068219,2431.7,2431.6,6.15789439]
[1728465523255,0.07068219,2431.7,2431.6,2.04538439]
[1728465523804,0.07068219,2431.7,2431.6,0.7586]
[1728465524103,0.07068219,2431.7,2431.3,0.7614]
[1728465524307,0.07068219,2431.7,2431.3,4.87442]
[1728465524454,0.07068219,2431.7,2431.5,3.80174978]
[1728465524768,0.07068219,2431.7,2431.6,0.7614]
[1728465526401,0.07068219,2431.7,2431.6,1.62899698]
[1728465531078,0.07068219,2431.7,2431.6,5.82373726]
[1728465531405,0.07068219,2431.7,2431.6,5.74150698]
[1728465531909,0.07068219,2431.7,2431.6,8.74150698]
[1728465532204,0.07068219,2431.7,2431.6,9.29150698]
[1728465537664,0.07068219,2431.7,2431.6,9.49362491]
[1728465542597,0.07068219,2431.7,2431.6,12.54325676]
[1728465542895,0.12458906,2431.7,2431.6,1.62899698]
[1728465543229,0.12458906,2431.7,2431.6,9.54325676]
[1728465543430,0.12458906,2431.7,2431.6,5.43074676]
[1728465543811,0.12458906,2431.7,2431.6,4.66934676]
[1728465544696,0.12458906,2431.7,2431.6,3.80174978]
[1728465549344,0.12458906,2431.7,2431.6,7.91425978]
[1728465549636,0.12458906,2431.7,2431.6,8.73215978]
[1728465553751,0.12458906,2431.7,2431.6,3.80174978]
[1728465553917,0.12458906,2431.7,2431.6,7.99649299]
[1728465554245,0.12458906,2431.7,2431.6,10.05619584]
[1728465554443,0.12458906,2431.7,2431.6,9.97396408]
[1728465556605,0.12458906,2431.7,2431.6,12.97396408]
[1728465556763,0.12458906,2431.7,2431.6,13.52396408]
[1728465559824,0.7556,2432.5,2432.2,4.1114]
[1728465560126,0.7556,2432.5,2432.4,3.80174978]
[1728465561991,0.7556,2432.5,2432.3,0.49186]
[1728465566592,4.86629,2432.7,2432.3,0.5740714]
[1728465566766,0.7556,2432.7,2432.4,3.80174978]
[1728465566970,8.40904473,2433.0,2432.5,0.42936098]
[1728465566971,4.86607,2432.9,2432.5,0.42936098]
[1728465567285,4.86607,2432.9,2432.4,3.80174978]
[1728465567286,4.11053,2432.8,2432.4,3.80174978]
[1728465568600,4.86607,2432.9,2432.4,7.91281978]
[1728465569166,8.97648,2432.9,2432.4,7.91281978]
[1728465569361,4.86601,2432.9,2432.4,7.91281978]
[1728465569572,4.86601,2432.9,2432.4,12.02389978]
[1728465569794,4.86601,2432.9,2432.5,1.25157598]
[1728465570059,0.7556,2432.9,2432.5,2.03407598]
[1728465570368,0.7556,2432.9,2432.6,3.80174978]
[1728465570568,4.86592,2432.9,2432.7,0.08220348]
[1728465570757,4.29873473,2433.0,2432.7,0.08220447]
[1728465570964,4.29873473,2433.0,2432.6,3.80174978]
[1728465571163,4.29873473,2433.0,2432.6,5.20753236]
[1728465572464,4.1984038,2433.0,2432.6,5.20753236]
[1728465573002,4.11036,2432.9,2432.6,5.20753236]
[1728465573306,4.1984038,2433.0,2432.8,3.80174978]
[1728465573615,0.0882038,2433.0,2432.8,3.80174978]
[1728465573782,0.0882038,2433.0,2432.9,0.88165321]
[1728465575028,0.0882038,2433.0,2432.9,5.76857323]
[1728465575397,0.0882038,2433.0,2432.9,5.68637829]
[1728465575765,0.0882038,2433.0,2432.9,5.76855705]
[1728465576208,0.0882038,2433.0,2432.9,9.31855705]
[1728465576513,0.0882038,2433.0,2432.9,9.23637829]
[1728465580784,0.0882038,2433.0,2432.9,14.23637829]
[1728465581008,4.86408,2434.0,2433.7,3.80174978]
[1728465581391,0.7556,2434.0,2433.7,3.80174978]
[1728465581682,4.10863,2433.9,2433.5,3.80174978]
[1728465582000,4.1088,2433.8,2433.5,3.80174978]
[1728465582377,4.1088,2433.8,2433.3,4.87234]
[1728465582378,4.10925,2433.6,2433.3,3.80174978]
[1728465582679,4.10925,2433.6,2433.0,3.0]
[1728465582680,4.10939,2433.5,2433.0,3.80174978]
[1728465582884,4.10915,2433.6,2433.2,3.80174978]
[1728465583081,4.10915,2433.6,2433.2,4.60113915]
[1728465583317,4.86468,2433.7,2433.2,4.60113915]
[1728465583623,4.86467,2433.7,2433.3,0.08217837]
[1728465583781,4.10925,2433.6,2433.2,3.80174978]
[1728465585826,8.21879,2433.5,2433.2,3.80174978]
[1728465586125,8.21875,2433.5,2433.2,3.80174978]
[1728465586328,4.10932,2433.5,2432.9,1.56225829]
[1728465586491,4.86516,2433.4,2433.0,3.80174978]
[1728465586940,0.7556,2433.4,2433.1,0.08218718]
[1728465587445,0.7556,2433.4,2433.2,3.80174978]